bitfinex/quotes_SOLUSD_20240813
["timestamp","ask_amount","ask_price","bid_price","bid_amount"]
[1723565216424,21.66063536,146.33,146.29,0.8207651]
[1723565216625,20.0,146.33,146.29,0.8207651]
[1723565216832,1.66063536,146.32,146.29,0.8207651]
[1723565217211,21.66063536,146.33,146.29,0.8207651]
[1723565217423,1.66063536,146.32,146.29,0.8207651]
[1723565217726,6.8332,146.35,146.29,0.8207651]
[1723565217935,72.34751302,146.37,146.29,0.8207651]
[1723565217936,6.8335,146.34,146.29,0.8207651]
[1723565218307,39.22,146.35,146.3,0.12549]
[1723565218308,46.0532,146.35,146.3,0.12549]
[1723565218634,46.0532,146.35,146.3,0.25098]
[1723565218930,20.0,146.34,146.3,0.25098]
[1723565219170,20.0,146.35,146.3,0.25098]
[1723565219334,7.10741342,146.37,146.3,0.25098]
[1723565219535,39.22,146.41,146.3,0.25098]
[1723565220124,6.8311,146.39,146.3,0.25098]
[1723565220441,6.8321,146.37,146.3,0.25098]
[1723565220604,8.49303536,146.36,146.3,0.25098]
[1723565220799,6.8321,146.37,146.3,0.25098]
[1723565221007,6.8316,146.38,146.3,0.25098]
[1723565221300,39.22,146.41,146.3,0.25098]
[1723565221711,6.8313,146.39,146.3,0.25098]
[1723565221911,39.22,146.39,146.3,0.25098]
[1723565222109,6.8329,146.35,146.3,0.25098]
[1723565222319,39.22,146.39,146.3,0.25098]
[1723565222522,6.8327,146.36,146.3,0.12549]
[1723565223538,6.8321,146.37,146.3,0.12549]
[1723565223713,20.0,146.36,146.3,0.25098]
[1723565224437,1.66063536,146.37,146.3,0.25098]
[1723565224734,40.88063536,146.37,146.3,0.25098]
[1723565224919,6.8332,146.35,146.3,0.25098]
[1723565225125,6.8326,146.36,146.3,0.25098]
[1723565225306,20.0,146.35,146.3,0.25098]
[1723565226538,46.0521,146.37,146.3,0.25098]
[1723565226834,39.22,146.41,146.3,0.25098]
[1723565227028,20.0,146.4,146.3,0.25098]
[1723565227217,26.8308,146.4,146.3,0.25098]
[1723565227402,8.49163536,146.39,146.3,0.25098]
[1723565227607,20.0,146.38,146.3,0.25098]
[1723565228139,20.0,146.39,146.3,0.25098]
[1723565228663,20.0,146.4,146.3,0.25098]
[1723565229003,20.0,146.4,146.31,15.5685]
[1723565229203,46.32474886,146.43,146.31,15.5685]
[1723565229204,7.10474886,146.43,146.33,6.5755]
[1723565229429,7.10474886,146.43,146.34,0.25098]
[1723565229430,6.8292,146.43,146.34,0.25098]
[1723565229669,8.48943536,146.44,146.34,45.25098]
[1723565229843,15.3263,146.47,146.35,15.5685]
[1723565229844,46.0474,146.47,146.35,15.5685]
[1723565230005,6.8274,146.47,146.36,51.82648]
[1723565230441,55.3142,146.51,146.36,51.82648]
[1723565230744,39.22,146.51,146.37,75.2802]
[1723565230945,6.8259,146.51,146.39,39.22]
[1723565231230,6.8264,146.49,146.41,16.0602]
[1723565231449,39.22,146.53,146.42,0.12549]
[1723565231450,1.66063536,146.48,146.42,0.12549]
[1723565231610,6.8271,146.48,146.42,45.12549]
[1723565231808,6.8265,146.49,146.42,45.25098]
[1723565232024,1.66063536,146.48,146.42,45.25098]
[1723565232443,20.0,146.49,146.42,45.25098]
[1723565232611,1.66063536,146.48,146.42,45.25098]
[1723565233620,20.0,146.49,146.42,45.25098]
[1723565234721,26.8253,146.52,146.43,6.1497]
[1723565235040,21.66063536,146.52,146.44,45.25098]
[1723565235351,6.826,146.5,146.44,45.25098]
[1723565235525,20.0,146.49,146.44,45.25098]
[1723565235850,6.8264,146.49,146.44,45.25098]
[1723565236102,20.0,146.52,146.44,45.25098]
[1723565236723,26.825,146.52,146.44,45.25098]
[1723565237747,26.8251,146.52,146.44,45.25098]
[1723565238135,20.0,146.52,146.44,45.25098]
[1723565238440,6.8239,146.55,146.45,16.2864]
[1723565238639,6.8241,146.54,146.46,45.25098]
[1723565239253,6.8239,146.55,146.46,45.25098]
[1723565239748,20.0,146.54,146.46,45.25098]
[1723565240131,20.0,146.54,146.47,6.1101]
[1723565240340,20.0,146.54,146.48,45.25098]
[1723565240644,26.8241,146.54,146.48,45.25098]
[1723565241357,6.8228,146.57,146.48,45.25098]
[1723565241530,20.0,146.56,146.48,45.25098]
[1723565241732,26.8232,146.56,146.48,45.25098]
[1723565242754,20.0,146.56,146.48,45.25098]
[1723565242953,20.0,146.57,146.48,45.25098]
[1723565243255,26.8227,146.57,146.48,45.25098]
[1723565243430,1.66063536,146.56,146.48,45.25098]
[1723565243742,6.824,146.54,146.48,45.25098]
[1723565243946,8.48553536,146.53,146.47,6.1101]
[1723565244158,1.66063536,146.53,146.47,6.1101]
[1723565244337,39.22,146.54,146.47,6.1101]
[1723565244848,6.8242,146.54,146.47,6.1101]
[1723565245156,6.8236,146.55,146.47,6.1101]
[1723565245353,20.0,146.54,146.48,0.12549]
[1723565245744,6.8233,146.56,146.48,45.12549]
[1723565245953,6.8228,146.57,146.49,0.12549]
[1723565246139,20.0,146.56,146.49,0.12549]
[1723565246451,26.8232,146.56,146.49,0.12549]
[1723565246658,6.8237,146.55,146.49,0.12549]
[1723565246962,20.0,146.56,146.49,0.12549]
[1723565247170,20.0,146.57,146.49,0.12549]
[1723565247858,26.8228,146.57,146.49,0.12549]
[1723565248049,20.0,146.57,146.5,16.6625]
[1723565248254,20.0,146.57,146.51,45.25098]
[1723565248562,6.8213,146.6,146.51,45.25098]
[1723565248744,39.22,146.65,146.52,6.0784]
[1723565248937,39.22,146.65,146.53,61.02039]
[1723565249260,6.82,146.63,146.54,0.12549]
[1723565249965,6.8203,146.62,146.54,0.12549]
[1723565250143,8.48173536,146.61,146.54,0.12549]
[1723565250458,6.8216,146.6,146.53,61.02039]
[1723565250658,6.8216,146.6,146.53,16.02039]
[1723565250961,6.8219,146.59,146.53,16.02039]
[1723565251145,39.22,146.62,146.53,16.02039]
[1723565251146,6.8214,146.6,146.53,16.02039]
[1723565252131,6.8218,146.59,146.54,45.0]
[1723565252456,1.66063536,146.61,146.54,45.0]
[1723565252655,20.0,146.61,146.54,45.0]
[1723565253050,6.8218,146.59,146.54,45.0]
[1723565253557,1.66063536,146.6,146.54,45.0]
[1723565253862,26.8212,146.61,146.55,0.25098]
[1723565254052,20.0,146.61,146.55,0.25098]
[1723565254862,26.8209,146.61,146.55,0.25098]
[1723565256648,20.0,146.61,146.55,0.25098]
[1723565256857,26.8202,146.63,146.55,0.25098]
[1723565257182,6.8193,146.65,146.55,0.25098]
[1723565257356,46.0386,146.66,146.56,6.3644]
[1723565257546,46.0386,146.66,146.57,45.25098]
[1723565257736,6.8183,146.67,146.58,16.5459]
[1723565257935,6.8183,146.67,146.59,45.25098]
[1723565258356,46.0376,146.68,146.59,45.25098]
[1723565258553,6.8181,146.67,146.59,45.25098]
[1723565259271,6.8193,146.65,146.59,45.25098]
[1723565259648,1.66063536,146.64,146.59,45.25098]
[1723565259849,6.8193,146.65,146.59,45.25098]
[1723565260052,6.8186,146.66,146.59,45.25098]
[1723565260478,6.8185,146.66,146.59,45.25098]
[1723565261071,6.8181,146.67,146.59,45.25098]
[1723565262198,6.8185,146.66,146.59,45.25098]
[1723565262467,1.66063536,146.65,146.59,45.25098]
[1723565263351,6.818,146.67,146.59,45.25098]
[1723565264980,8.47863536,146.67,146.59,45.25098]
[1723565265179,1.66063536,146.67,146.59,45.25098]
[1723565265358,21.66063536,146.67,146.59,45.25098]
[1723565265882,28.47873536,146.67,146.59,45.25098]
[1723565266060,6.8192,146.65,146.59,45.25098]
[1723565266259,1.66063536,146.64,146.59,45.25098]
[1723565266489,6.8186,146.66,146.59,45.25098]
[1723565266788,1.66063536,146.65,146.59,45.25098]
[1723565267154,1.66063536,146.64,146.59,45.0]
[1723565267354,6.8195,146.64,146.59,45.0]
[1723565267715,20.0,146.67,146.59,45.0]
[1723565267982,51.31,146.67,146.59,45.0]
[1723565268196,58.1282,146.67,146.59,45.0]
[1723565268365,6.8185,146.66,146.59,45.0]
[1723565268556,6.8185,146.66,146.6,0.25098]
[1723565268758,51.31,146.67,146.6,0.25098]
[1723565268759,58.1281,146.67,146.6,0.25098]
[1723565268994,26.8181,146.67,146.6,0.25098]
[1723565269758,20.0,146.67,146.6,0.25098]
[1723565271603,8.47923536,146.66,146.6,0.25098]
[1723565272392,1.66063536,146.66,146.6,0.25098]
[1723565272961,26.8181,146.67,146.6,0.25098]
[1723565273487,8.47913536,146.66,146.6,0.25098]
[1723565273690,26.8181,146.67,146.6,0.25098]
[1723565274074,1.66063536,146.66,146.6,0.25098]
[1723565274403,6.817,146.7,146.61,6.5182]
[1723565274570,6.817,146.7,146.62,60.81368]
[1723565274767,6.8163,146.71,146.62,60.81368]
[1723565275197,6.8167,146.7,146.62,60.81368]
[1723565276285,8.47683536,146.71,146.62,60.81368]
[1723565276598,20.0,146.7,146.62,60.81368]
[1723565276798,8.47783536,146.69,146.62,60.81368]
[1723565278911,6.8176,146.68,146.62,60.81368]
[1723565279228,6.818,146.67,146.62,15.5627]
[1723565279434,6.8175,146.68,146.62,15.5627]
[1723565279638,6.8171,146.69,146.62,15.5627]
[1723565279838,20.0,146.7,146.62,15.5627]
[1723565280137,1.66063536,146.71,146.62,15.5627]
[1723565280306,1.66063536,146.7,146.63,45.0]
[1723565280502,1.66063536,146.7,146.64,0.25098]
[1723565280503,6.8169,146.7,146.64,0.25098]
[1723565280898,6.8164,146.71,146.64,0.25098]
[1723565281295,24.1297833,146.75,146.65,52.5951]
[1723565281296,7.0934833,146.75,146.65,52.5951]
[1723565281519,6.8138,146.76,146.66,45.25098]
[1723565281719,6.8146,146.75,146.66,45.25098]
[1723565281907,1.66063536,146.74,146.66,45.25098]
[1723565282131,38.1239,146.76,146.66,45.25098]
[1723565282332,6.8134,146.77,146.66,45.25098]
[1723565282835,1.66063536,146.76,146.66,45.25098]
[1723565284118,1.66063536,146.76,146.67,23.0324]
[1723565284436,0.8207651,146.79,146.69,16.6181]
[1723565284665,0.8207651,146.79,146.71,6.4143]
[1723565284820,0.8207651,146.79,146.72,45.25098]
[1723565284821,2.48140046,146.79,146.72,45.25098]
[1723565285005,0.8207651,146.79,146.72,45.25098]
[1723565285619,7.6332651,146.79,146.72,45.25098]
[1723565285929,1.66063536,146.78,146.72,45.25098]
[1723565286443,8.47393536,146.78,146.72,45.25098]
[1723565286803,39.78393536,146.78,146.72,45.25098]
[1723565287013,1.66063536,146.77,146.72,45.25098]
[1723565287241,0.8207651,146.79,146.72,45.25098]
[1723565287536,22.48140046,146.79,146.72,45.25098]
[1723565287712,29.29400046,146.79,146.72,45.25098]
[1723565288204,22.48140046,146.79,146.72,45.25098]
[1723565288634,29.29400046,146.79,146.72,45.25098]
[1723565290310,22.48140046,146.79,146.72,45.25098]
[1723565292201,0.8207651,146.79,146.73,21.401]
[1723565292401,0.8207651,146.79,146.74,45.25098]
[1723565293434,7.6335651,146.79,146.73,21.401]
[1723565293649,1.66063536,146.78,146.73,21.401]
[1723565294541,6.813,146.78,146.73,21.401]
[1723565294715,38.9432651,146.79,146.73,21.401]
[1723565294924,8.47363536,146.78,146.73,21.401]
[1723565295442,31.31,146.77,146.73,21.401]
[1723565295615,8.47443536,146.76,146.73,21.401]
[1723565295821,1.66063536,146.76,146.73,21.401]
[1723565296037,21.66063536,146.78,146.73,21.401]
[1723565296845,21.66063536,146.78,146.74,45.12549]
[1723565297145,21.66063536,146.78,146.73,21.401]
[1723565297521,28.47363536,146.78,146.73,21.401]
[1723565298238,28.47363536,146.78,146.74,45.0]
[1723565298418,21.66063536,146.78,146.74,45.0]
[1723565298645,6.8135,146.77,146.74,45.0]
[1723565298829,32.97063536,146.78,146.74,45.0]
[1723565299149,39.78383536,146.78,146.74,45.0]
[1723565299317,0.8207651,146.79,146.75,0.12549]
[1723565299514,2.48140046,146.79,146.75,0.25098]
[1723565301019,0.8207651,146.79,146.75,0.25098]
[1723565304047,0.8207651,146.79,146.73,21.401]
[1723565305827,7.6333651,146.79,146.73,21.401]
[1723565306024,6.813,146.78,146.73,21.401]
[1723565306424,0.8207651,146.79,146.73,21.401]
[1723565307275,0.8207651,146.79,146.74,45.12549]
[1723565308334,7.6331651,146.79,146.74,45.12549]
[1723565308532,1.66063536,146.78,146.74,45.12549]
[1723565309039,0.8207651,146.79,146.74,45.12549]
[1723565309374,0.8207651,146.79,146.75,0.12549]
[1723565312173,2.48140046,146.79,146.75,0.12549]
[1723565312661,0.8207651,146.79,146.75,0.12549]
[1723565312961,1.66063536,146.78,146.74,45.12549]
[1723565313347,1.66063536,146.78,146.73,21.401]
[1723565313348,31.31,146.78,146.73,21.401]
[1723565313553,6.8141,146.76,146.73,21.401]
[1723565313733,1.66063536,146.75,146.73,21.401]
[1723565314672,6.8141,146.76,146.69,6.2063]
[1723565314834,1.66063536,146.75,146.7,0.12549]
[1723565315044,31.31,146.78,146.7,0.12549]
[1723565315358,6.8135,146.77,146.7,0.12549]
[1723565315544,1.66063536,146.76,146.7,0.12549]
[1723565315945,7.6332651,146.79,146.7,0.25098]
[1723565316148,21.66063536,146.78,146.7,0.25098]
[1723565316351,21.66063536,146.78,146.7,45.25098]
[1723565316841,28.47353536,146.78,146.7,45.25098]
[1723565317232,26.8129,146.78,146.7,45.25098]
[1723565317443,1.66063536,146.77,146.7,45.25098]
[1723565317942,21.66063536,146.78,146.71,15.4041]
[1723565318144,1.66063536,146.78,146.72,45.25098]
[1723565319062,8.47373536,146.78,146.72,45.25098]
[1723565319447,1.66063536,146.78,146.72,45.25098]
[1723565319651,8.47363536,146.78,146.72,45.25098]
[1723565319850,1.66063536,146.78,146.72,45.25098]
[1723565320364,13.10752592,146.79,146.72,45.25098]
[1723565320751,31.31,146.78,146.71,15.4041]
[1723565320953,6.8141,146.76,146.71,15.4041]
[1723565321153,1.66063536,146.75,146.71,15.4041]
[1723565321547,6.8134,146.77,146.71,15.4041]
[1723565322066,1.66063536,146.76,146.71,15.4041]
[1723565322279,1.66063536,146.76,146.72,45.25098]
[1723565322762,32.1307651,146.79,146.72,45.25098]
[1723565323867,6.813,146.78,146.72,45.25098]
[1723565324047,32.1307651,146.79,146.72,45.25098]
[1723565324254,6.8131,146.78,146.72,45.25098]
[1723565324461,32.1307651,146.79,146.72,45.25098]
[1723565324663,0.8207651,146.79,146.72,45.25098]
[1723565329142,2.48140046,146.79,146.72,45.25098]
[1723565330244,1.66063536,146.78,146.72,45.25098]
[1723565330973,0.8207651,146.79,146.72,45.25098]
[1723565331271,2.48140046,146.79,146.72,45.25098]
[1723565332448,2.48140046,146.79,146.72,0.25098]
[1723565332449,1.66063536,146.78,146.72,0.25098]
[1723565333753,0.8207651,146.79,146.72,45.25098]
[1723565333754,2.48140046,146.79,146.72,45.25098]
[1723565335255,0.8207651,146.79,146.72,45.25098]
[1723565335976,0.8207651,146.79,146.72,57.75098]
[1723565336349,0.8207651,146.79,146.74,12.5]
[1723565336652,0.8207651,146.79,146.75,45.25098]
[1723565337286,0.8207651,146.79,146.76,45.0]
[1723565337483,0.8207651,146.79,146.75,0.12549]
[1723565337969,2.48140046,146.79,146.75,0.12549]
[1723565338171,0.8207651,146.79,146.75,0.12549]
[1723565338673,0.8207651,146.79,146.75,0.25098]
[1723565339055,0.8207651,146.79,146.75,0.12549]
[1723565340469,0.8207651,146.79,146.75,0.25098]
[1723565340869,0.8207651,146.79,146.75,0.12549]
[1723565341048,0.8207651,146.79,146.74,45.0]
[1723565341451,2.48140046,146.79,146.74,45.0]
[1723565342260,0.8207651,146.79,146.75,0.25098]
[1723565342461,2.48140046,146.79,146.75,0.25098]
[1723565342656,2.48140046,146.79,146.75,0.12549]
[1723565342863,9.29380046,146.79,146.74,45.0]
[1723565343289,2.48140046,146.79,146.74,45.0]
[1723565344069,0.8207651,146.79,146.74,45.0]
[1723565344376,2.48140046,146.79,146.74,45.0]
[1723565344991,0.8207651,146.79,146.74,45.0]
[1723565345492,2.48140046,146.79,146.74,45.0]
[1723565345660,0.8207651,146.79,146.75,12.62549]
[1723565345851,0.8207651,146.79,146.76,45.0]
[1723565346079,0.8207651,146.79,146.77,0.12549]
[1723565346460,0.8207651,146.79,146.77,0.25098]
[1723565347787,0.8207651,146.79,146.77,16.26368]
[1723565347971,0.8207651,146.79,146.78,45.0]
[1723565348171,0.8207651,146.79,146.78,45.25098]
[1723565348486,0.8207651,146.79,146.78,45.0]
[1723565348688,0.8207651,146.79,146.78,45.12549]
[1723565349675,0.8207651,146.79,146.78,45.0]
[1723565350493,0.8207651,146.79,146.73,6.2724]
[1723565350898,0.8207651,146.79,146.72,15.2173]
[1723565350899,1.66063536,146.78,146.72,15.2173]
[1723565351067,0.8207651,146.79,146.72,15.2173]
[1723565351271,1.66063536,146.78,146.72,15.2173]
[1723565351483,0.8207651,146.79,146.72,15.2173]
[1723565351971,2.48140046,146.79,146.72,15.2173]
[1723565352490,0.8207651,146.79,146.72,15.2173]
[1723565353568,0.8207651,146.79,146.73,0.25098]
[1723565353770,0.8207651,146.79,146.74,12.5]
[1723565354023,0.8207651,146.79,146.75,0.25098]
[1723565354310,0.8207651,146.79,146.75,45.25098]
[1723565355895,0.8207651,146.79,146.75,45.12549]
[1723565356117,0.8207651,146.79,146.75,45.0]
[1723565356794,0.8207651,146.79,146.76,0.12549]
[1723565357417,0.8207651,146.79,146.76,0.25098]
[1723565358306,0.8207651,146.79,146.77,0.25098]
[1723565361295,0.8207651,146.79,146.78,0.12549]
[1723565362079,0.8207651,146.79,146.77,0.25098]
[1723565363298,0.8207651,146.79,146.77,0.12549]
[1723565363696,0.8207651,146.79,146.77,0.25098]
[1723565364076,0.8207651,146.79,146.77,0.12549]
[1723565365885,0.8207651,146.79,146.77,0.25098]
[1723565366570,0.8207651,146.79,146.78,0.12549]
[1723565367111,0.8207651,146.79,146.77,0.12549]
[1723565367283,0.8207651,146.79,146.76,0.37647]
[1723565367807,0.8207651,146.79,146.77,0.12549]
[1723565368175,0.8207651,146.79,146.77,0.25098]
[1723565368373,0.8207651,146.79,146.78,0.25098]
[1723565368604,0.8207651,146.79,146.78,0.37647]
[1723565370703,0.8207651,146.79,146.75,45.0]
[1723565370704,0.8207651,146.79,146.76,0.12549]
[1723565370889,0.8207651,146.79,146.76,0.50196]
[1723565371203,0.8207651,146.79,146.76,0.12549]
[1723565372204,0.8207651,146.79,146.76,0.25098]
[1723565372713,0.8207651,146.79,146.77,0.25098]
[1723565372877,0.8207651,146.79,146.78,0.12549]
[1723565376376,0.8207651,146.79,146.78,0.25098]
[1723565376782,0.8207651,146.79,146.78,0.50196]
[1723565377786,0.8207651,146.79,146.75,45.0]
[1723565377988,0.8207651,146.79,146.74,45.12549]
[1723565378210,0.8207651,146.79,146.75,20.37647]
[1723565378437,0.8207651,146.79,146.76,45.12549]
[1723565378717,0.8207651,146.79,146.77,0.12549]
[1723565379079,0.8207651,146.79,146.77,0.25098]
[1723565386918,0.8207651,146.79,146.77,0.25098]
[1723565395704,0.8207651,146.79,146.68,24.27170497]
[1723565395705,13.3107651,146.79,146.68,24.27170497]
[1723565396027,13.3107651,146.79,146.68,36.76170497]
[1723565396028,1.66063536,146.78,146.68,36.76170497]
[1723565397099,1.66063536,146.78,146.7,0.12549]
[1723565397301,1.66063536,146.78,146.7,0.25098]
[1723565397499,1.66063536,146.78,146.71,0.12549]
[1723565397708,1.66063536,146.78,146.71,20.25098]
[1723565398010,1.66063536,146.78,146.72,45.0]
[1723565398312,1.66063536,146.78,146.66,5.7147046]
[1723565398313,12.49,146.77,146.66,5.7147046]
[1723565398522,28.8482,146.75,146.66,12.49]
[1723565398700,1.66063536,146.74,146.66,12.49]
[1723565399204,18.01883536,146.75,146.68,12.49]
[1723565399404,16.3582,146.75,146.68,12.49]
[1723565399599,16.3582,146.75,146.69,20.0]
[1723565399914,1.66063536,146.74,146.7,0.12549]
[1723565400120,16.3582,146.75,146.7,0.12549]
[1723565401138,16.3582,146.75,146.71,0.12549]
[1723565401312,16.3582,146.75,146.71,0.25098]
[1723565401517,16.3582,146.75,146.72,0.12549]
[1723565401695,1.66063536,146.74,146.72,0.12549]
[1723565401894,18.01883536,146.75,146.72,0.12549]
[1723565402366,12.28490263,146.76,146.73,0.12549]
[1723565402513,6.2665,146.77,146.73,0.25098]
[1723565402823,1.66063536,146.76,146.72,45.25098]
[1723565404232,6.2665,146.77,146.73,0.25098]
[1723565404409,6.2665,146.77,146.74,0.12549]
[1723565404611,7.92713536,146.77,146.74,0.12549]
[1723565404934,6.2665,146.77,146.74,0.12549]
[1723565405238,0.8207651,146.79,146.74,0.12549]
[1723565405444,0.8207651,146.79,146.75,0.12549]
[1723565405617,0.8207651,146.79,146.75,0.37647]
[1723565406138,0.8207651,146.79,146.76,0.12549]
[1723565406340,0.8207651,146.79,146.77,0.12549]
[1723565406529,0.8207651,146.79,146.77,0.25098]
[1723565406719,0.8207651,146.79,146.78,0.12549]
[1723565407951,0.8207651,146.79,146.78,22.06249]
[1723565408156,0.8207651,146.79,146.78,97.89135386]
[1723565408443,34.50011381,146.9,146.82,0.12549]
[1723565408617,6.8094,146.86,146.78,87.31347]
[1723565408821,12.27702361,146.89,146.8,28.43339]
[1723565409039,24.19077715,146.9,146.82,12.61549]
[1723565409213,27.69262361,146.9,146.83,0.37647]
[1723565409418,27.69262361,146.9,146.84,0.12549]
[1723565409641,47.33862558,146.9,146.84,0.12549]
[1723565409866,13.93765897,146.89,146.84,0.12549]
[1723565410139,1.66063536,146.89,146.84,0.12549]
[1723565410324,15.4156,146.9,146.84,0.12549]
[1723565410512,1.66063536,146.89,146.84,0.12549]
[1723565410756,1.66063536,146.89,146.83,45.37647]
[1723565411342,12.27702361,146.89,146.83,45.37647]
[1723565411520,40.18262361,146.9,146.83,45.37647]
[1723565411722,40.18262361,146.9,146.84,0.12549]
[1723565412117,12.27661397,146.89,146.84,0.12549]
[1723565412315,1.66063536,146.88,146.83,45.37647]
[1723565412544,14.15063536,146.88,146.8,15.8179]
[1723565412714,19.2984,146.88,146.8,15.8179]
[1723565413036,20.95903536,146.88,146.8,15.8179]
[1723565413441,14.15063536,146.88,146.8,15.8179]
[1723565413654,14.15063536,146.88,146.76,16.0222]
[1723565413947,19.2995,146.86,146.77,20.0]
[1723565414157,1.66063536,146.85,146.77,20.0]
[1723565414325,1.66063536,146.85,146.76,28.5122]
[1723565414326,12.49,146.84,146.76,28.5122]
[1723565414651,1.66063536,146.83,146.76,16.0222]
[1723565414831,1.66063536,146.82,146.76,16.0222]
[1723565415024,1.66063536,146.82,146.72,16.0222]
[1723565415231,15.3576,146.83,146.73,12.49]
[1723565415530,17.01823536,146.83,146.73,12.49]
[1723565415833,1.66063536,146.82,146.73,12.49]
[1723565416232,14.15063536,146.82,146.73,12.49]
[1723565416452,15.3576,146.83,146.75,12.49]
[1723565417060,1.66063536,146.82,146.73,12.49]
[1723565417237,1.66063536,146.82,146.75,12.49]
[1723565417443,6.2509,146.85,146.77,0.12549]
[1723565417625,6.2509,146.85,146.77,0.37647]
[1723565417825,12.49,146.86,146.78,0.12549]
[1723565418047,12.49,146.86,146.79,0.12549]
[1723565418244,28.21756792,146.87,146.79,0.37647]
[1723565418445,28.21756792,146.87,146.8,0.12549]
[1723565418666,28.21756792,146.87,146.8,0.37647]
[1723565418967,28.21756792,146.87,146.81,0.12549]
[1723565419130,28.21756792,146.87,146.81,0.25098]
[1723565419328,28.21756792,146.87,146.82,0.12549]
[1723565419752,14.15063536,146.86,146.82,0.12549]
[1723565419953,1.66063536,146.86,146.81,0.25098]
[1723565420460,29.87645388,146.87,146.81,0.25098]
[1723565420628,15.9374,146.87,146.82,0.12549]
[1723565421026,1.66063536,146.86,146.82,0.12549]
[1723565421225,1.66063536,146.85,146.82,0.12549]
[1723565421525,15.9374,146.87,146.82,0.12549]
[1723565421740,22.7463,146.87,146.82,0.12549]
[1723565421955,6.8096,146.86,146.8,0.12549]
[1723565422128,6.8096,146.86,146.79,0.50196]
[1723565422449,1.66063536,146.85,146.74,26.322]
[1723565422828,31.22,146.84,146.74,26.322]
[1723565423027,31.22,146.8,146.72,16.0222]
[1723565423250,1.66063536,146.79,146.72,16.0222]
[1723565423461,8.47313536,146.79,146.72,16.0222]
[1723565423957,1.66063536,146.79,146.72,16.0222]
[1723565424142,15.9374,146.81,146.72,16.0222]
[1723565424659,17.59803536,146.81,146.72,16.0222]
[1723565424879,24.40963536,146.81,146.73,0.12549]
[1723565425062,24.40963536,146.81,146.73,45.50196]
[1723565425366,6.812,146.8,146.73,45.50196]
[1723565425523,1.66063536,146.79,146.73,45.50196]
[1723565425724,22.749,146.81,146.72,16.0222]
[1723565425959,1.66063536,146.8,146.72,16.0222]
[1723565426258,15.9374,146.81,146.72,16.0222]
[1723565426860,6.8122,146.8,146.72,16.0222]
[1723565427157,6.8122,146.8,146.73,45.50196]
[1723565427343,15.9374,146.81,146.73,45.50196]
[1723565427549,1.66063536,146.8,146.73,45.50196]
[1723565427859,22.749,146.81,146.73,45.50196]
[1723565428047,1.66063536,146.79,146.73,45.50196]
[1723565428976,1.66063536,146.79,146.72,16.0222]
[1723565428977,8.47303536,146.79,146.72,16.0222]
[1723565429874,38.032,146.8,146.72,16.0222]
[1723565430047,1.66063536,146.79,146.72,16.0222]
[1723565430373,1.66063536,146.79,146.73,45.50196]
[1723565430671,31.22,146.8,146.73,45.50196]
[1723565431051,1.66063536,146.79,146.73,45.50196]
[1723565431250,8.47313536,146.79,146.73,45.50196]
[1723565431468,1.66063536,146.79,146.73,45.50196]
[1723565431971,6.813,146.78,146.73,45.25098]
[1723565432173,8.47423536,146.77,146.7,6.322]
[1723565432350,8.47423536,146.77,146.68,16.1701]
[1723565432351,39.69443536,146.76,146.68,16.1701]
[1723565432548,1.66063536,146.75,146.69,20.0]
[1723565432769,31.22,146.74,146.66,6.6016]
[1723565433048,31.22,146.74,146.64,16.1701]
[1723565433049,1.66063536,146.73,146.64,16.1701]
[1723565433260,8.47593536,146.73,146.64,16.1701]
[1723565433461,31.22,146.74,146.64,16.1701]
[1723565433662,22.0117,146.75,146.64,16.1701]
[1723565433862,15.1974,146.75,146.64,16.1701]
[1723565434270,15.1974,146.75,146.65,65.50196]
[1723565434454,1.66063536,146.74,146.65,65.12549]